[Event "Titled Tuesday Blitz August 08 Early 2023"]
[White "HamedWafa4"]
[Black "Kirillov, Dmitry"]
[BlackFideId "34180572"]
[WhiteElo "2626"]
[BlackElo "2443"]
[Result "1-0"]
[Round "3"]
[TimeControl "180+1"]
[Date "2023.08.08"]
[WhiteClock "0:00:12"]
[BlackClock "0:00:22"]
[Board "128"]

1. e4 {[%clk 0:03:00]}  c6 {[%clk 0:02:59]} 2. d3 {[%clk 0:02:56]}  d5 {[%clk 0:03:00]} 3. Nf3 {[%clk 0:02:56]}  g6 {[%clk 0:02:59]} 4. e5 {[%clk 0:02:53]}  Bg7 {[%clk 0:02:58]} 5. d4 {[%clk 0:02:53]}  h5 {[%clk 0:02:59]} 6. Be3 {[%clk 0:02:45]}  Nh6 {[%clk 0:02:59]} 7. Bd3 {[%clk 0:02:43]}  Bf5 {[%clk 0:02:55]} 8. O-O {[%clk 0:02:42]}  O-O {[%clk 0:02:53]} 9. Bxh6 {[%clk 0:02:38]}  Bxh6 {[%clk 0:02:47]} 10. Bxf5 {[%clk 0:02:38]}  gxf5 {[%clk 0:02:48]} 11. Nh4 {[%clk 0:02:38]}  e6 {[%clk 0:02:48]} 12. Qxh5 {[%clk 0:02:36]}  Bg7 {[%clk 0:02:48]} 13. Nf3 {[%clk 0:02:34]}  f6 {[%clk 0:02:38]} 14. exf6 {[%clk 0:02:33]}  Rxf6 {[%clk 0:02:34]} 15. Ng5 {[%clk 0:02:17]}  Nd7 {[%clk 0:02:34]} 16. Re1 {[%clk 0:02:13]}  Qe8 {[%clk 0:02:34]} 17. Qxe8+ {[%clk 0:02:04]}  Rxe8 {[%clk 0:02:35]} 18. Nd2 {[%clk 0:02:03]}  Rg6 {[%clk 0:02:35]} 19. h4 {[%clk 0:01:57]}  Bxd4 {[%clk 0:02:33]} 20. c3 {[%clk 0:01:53]}  Bf6 {[%clk 0:02:33]} 21. f4 {[%clk 0:01:38]}  Nc5 {[%clk 0:02:06]} 22. g3 {[%clk 0:01:19]}  Ne4 {[%clk 0:02:03]} 23. Ndxe4 {[%clk 0:01:15]}  fxe4 {[%clk 0:02:00]} 24. Rf1 {[%clk 0:01:04]}  Bd8 {[%clk 0:01:30]} 25. Kg2 {[%clk 0:00:59]}  Rf8 {[%clk 0:01:30]} 26. Kh3 {[%clk 0:00:55]}  Bxg5 {[%clk 0:01:23]} 27. fxg5 {[%clk 0:00:52]}  Rxf1 {[%clk 0:01:11]} 28. Rxf1 {[%clk 0:00:50]}  Rg7 {[%clk 0:01:12]} 29. Rf6 {[%clk 0:00:46]}  Re7 {[%clk 0:01:09]} 30. h5 {[%clk 0:00:43]}  e5 {[%clk 0:01:07]} 31. g6 {[%clk 0:00:39]}  Kg7 {[%clk 0:01:04]} 32. Rd6 {[%clk 0:00:36]}  e3 {[%clk 0:00:55]} 33. Kg2 {[%clk 0:00:34]}  d4 {[%clk 0:00:56]} 34. Kf1 {[%clk 0:00:27]}  c5 {[%clk 0:00:55]} 35. g4 {[%clk 0:00:24]}  Kh6 {[%clk 0:00:54]} 36. Ke2 {[%clk 0:00:17]}  Kg5 {[%clk 0:00:45]} 37. cxd4 {[%clk 0:00:17]}  exd4 {[%clk 0:00:43]} 38. Rd5+ {[%clk 0:00:18]}  Kf4 {[%clk 0:00:26]} 39. h6 {[%clk 0:00:16]}  Ke4 {[%clk 0:00:27]} 40. g7 {[%clk 0:00:14]}  d3+ {[%clk 0:00:22]} 41. Rxd3 {[%clk 0:00:12]} 1-0


[Site "https://www.chess.com"]

[Event "Titled Tuesday Blitz August 08 Early 2023"]
[White "Iskusnyh, Sergei"]
[Black "Harriott, Tyrell"]
[WhiteFideId "4120027"]
[BlackFideId "2086484"]
[WhiteElo "2625"]
[BlackElo "2442"]
[Result "1-0"]
[Round "3"]
[TimeControl "180+1"]
[Date "2023.08.08"]
[WhiteClock "0:00:47"]
[BlackClock "0:00:00"]
[Board "129"]

1. d4 {[%clk 0:03:00]}  e6 {[%clk 0:02:56]} 2. c4 {[%clk 0:03:00]}  d5 {[%clk 0:02:53]} 3. Nf3 {[%clk 0:02:59]}  c6 {[%clk 0:02:53]} 4. b3 {[%clk 0:02:57]}  Bd6 {[%clk 0:02:52]} 5. g3 {[%clk 0:02:54]}  f5 {[%clk 0:02:53]} 6. Bg2 {[%clk 0:02:54]}  Nf6 {[%clk 0:02:52]} 7. O-O {[%clk 0:02:54]}  O-O {[%clk 0:02:51]} 8. Ba3 {[%clk 0:02:54]}  Bxa3 {[%clk 0:02:49]} 9. Nxa3 {[%clk 0:02:55]}  Nbd7 {[%clk 0:02:48]} 10. Qc1 {[%clk 0:02:51]}  Ne4 {[%clk 0:02:48]} 11. Qb2 {[%clk 0:02:51]}  Qf6 {[%clk 0:02:47]} 12. Nc2 {[%clk 0:02:48]}  g5 {[%clk 0:02:47]} 13. Nb4 {[%clk 0:02:36]}  g4 {[%clk 0:02:42]} 14. Nh4 {[%clk 0:02:35]}  Rf7 {[%clk 0:02:40]} 15. Nd3 {[%clk 0:02:34]}  Qg5 {[%clk 0:02:36]} 16. Qc1 {[%clk 0:02:24]}  Qh5 {[%clk 0:02:34]} 17. Nf4 {[%clk 0:02:19]}  Qh6 {[%clk 0:02:32]} 18. f3 {[%clk 0:02:16]}  gxf3 {[%clk 0:02:31]} 19. exf3 {[%clk 0:02:15]}  Ng5 {[%clk 0:02:31]} 20. Re1 {[%clk 0:02:07]}  Rg7 {[%clk 0:02:29]} 21. Nxe6 {[%clk 0:02:01]}  Rg6 {[%clk 0:02:17]} 22. Nxg5 {[%clk 0:01:48]}  Rxg5 {[%clk 0:02:12]} 23. Nxf5 {[%clk 0:01:43]}  Qf6 {[%clk 0:02:08]} 24. Ne7+ {[%clk 0:01:41]}  Kf7 {[%clk 0:02:02]} 25. cxd5 {[%clk 0:01:34]}  Qxd4+ {[%clk 0:01:57]} 26. Kh1 {[%clk 0:01:34]}  Rh5 {[%clk 0:01:49]} 27. dxc6 {[%clk 0:01:29]}  Ne5 {[%clk 0:01:41]} 28. cxb7 {[%clk 0:01:12]}  Bxb7 {[%clk 0:01:40]} 29. Qc7 {[%clk 0:01:11]}  Nxf3 {[%clk 0:00:14]} 30. Nc6+ {[%clk 0:00:59]}  Kg8 {[%clk 0:00:07]} 31. Bxf3 {[%clk 0:00:55]}  Rxh2+ {[%clk 0:00:04]} 32. Kxh2 {[%clk 0:00:54]}  Qf2+ {[%clk 0:00:03]} 33. Bg2 {[%clk 0:00:52]}  Rc8 {[%clk 0:00:01]} 34. Qxb7 {[%clk 0:00:49]}  Rf8 {[%clk 0:00:00]} 35. Rf1 {[%clk 0:00:47]} 1-0


[Site "https://www.chess.com"]

[Event "Titled Tuesday Blitz August 08 Early 2023"]
[White "Garcia Ramos, Daniel"]
[Black "Sliwicki, Damian"]
[WhiteFideId "32010311"]
[BlackFideId "1127128"]
[WhiteElo "2621"]
[BlackElo "2434"]
[Result "1-0"]
[Round "3"]
[TimeControl "180+1"]
[Date "2023.08.08"]
[WhiteClock "0:00:25"]
[BlackClock "0:00:09"]
[Board "131"]

1. e4 {[%clk 0:03:00]}  c5 {[%clk 0:03:00]} 2. Nf3 {[%clk 0:03:00]}  g6 {[%clk 0:03:00]} 3. d4 {[%clk 0:03:00]}  cxd4 {[%clk 0:03:01]} 4. Qxd4 {[%clk 0:03:01]}  Nf6 {[%clk 0:03:01]} 5. Nc3 {[%clk 0:03:00]}  Nc6 {[%clk 0:03:02]} 6. Qa4 {[%clk 0:03:00]}  d6 {[%clk 0:03:02]} 7. e5 {[%clk 0:03:01]}  dxe5 {[%clk 0:03:03]} 8. Nxe5 {[%clk 0:03:01]}  Bg7 {[%clk 0:03:04]} 9. Nxc6 {[%clk 0:02:54]}  bxc6 {[%clk 0:03:05]} 10. Qxc6+ {[%clk 0:02:55]}  Bd7 {[%clk 0:03:05]} 11. Qa6 {[%clk 0:02:55]}  O-O {[%clk 0:03:06]} 12. Be2 {[%clk 0:02:46]}  Bf5 {[%clk 0:03:01]} 13. O-O {[%clk 0:02:44]}  Bxc2 {[%clk 0:02:59]} 14. Be3 {[%clk 0:02:30]}  Rb8 {[%clk 0:02:47]} 15. Rac1 {[%clk 0:02:24]}  Rxb2 {[%clk 0:02:43]} 16. Qa3 {[%clk 0:02:22]}  Qb8 {[%clk 0:02:39]} 17. Bxa7 {[%clk 0:02:17]}  Qb7 {[%clk 0:01:57]} 18. Ba6 {[%clk 0:02:15]}  Qxa7 {[%clk 0:01:15]} 19. Qxb2 {[%clk 0:02:14]}  Bf5 {[%clk 0:01:07]} 20. Qb7 {[%clk 0:02:12]}  Qd4 {[%clk 0:01:01]} 21. Rfd1 {[%clk 0:02:06]}  Qg4 {[%clk 0:01:01]} 22. Be2 {[%clk 0:02:03]}  Qg5 {[%clk 0:00:58]} 23. a4 {[%clk 0:01:38]}  Nd7 {[%clk 0:00:58]} 24. h4 {[%clk 0:01:31]}  Qxh4 {[%clk 0:00:32]} 25. g3 {[%clk 0:00:49]}  Qg5 {[%clk 0:00:28]} 26. Ne4 {[%clk 0:00:44]}  Bxe4 {[%clk 0:00:23]} 27. Qxe4 {[%clk 0:00:42]}  Nc5 {[%clk 0:00:23]} 28. Qc4 {[%clk 0:00:37]}  Kh8 {[%clk 0:00:10]} 29. Qxc5 {[%clk 0:00:33]}  Be5 {[%clk 0:00:09]} 30. Kg2 {[%clk 0:00:31]}  Qf6 {[%clk 0:00:08]} 31. a5 {[%clk 0:00:27]}  Bd4 {[%clk 0:00:09]} 32. Qxd4 {[%clk 0:00:26]}  e5 {[%clk 0:00:09]} 33. Qd6 {[%clk 0:00:26]}  Qf5 {[%clk 0:00:09]} 34. Qxf8# {[%clk 0:00:25]} 1-0


[Site "https://www.chess.com"]

[Event "Titled Tuesday Blitz August 08 Early 2023"]
[White "szachmistrz2500"]
[Black "brm72"]
[WhiteElo "2434"]
[BlackElo "2621"]
[Result "1-0"]
[Round "3"]
[TimeControl "180+1"]
[Date "2023.08.08"]
[WhiteClock "0:00:14"]
[BlackClock "0:00:02"]
[Board "132"]

1. d4 {[%clk 0:03:00]}  Nf6 {[%clk 0:02:59]} 2. Nf3 {[%clk 0:03:00]}  g6 {[%clk 0:02:59]} 3. c4 {[%clk 0:02:59]}  Bg7 {[%clk 0:03:00]} 4. Nc3 {[%clk 0:03:00]}  d5 {[%clk 0:03:00]} 5. cxd5 {[%clk 0:02:57]}  Nxd5 {[%clk 0:03:01]} 6. Qb3 {[%clk 0:02:57]}  Nxc3 {[%clk 0:02:59]} 7. bxc3 {[%clk 0:02:56]}  O-O {[%clk 0:02:59]} 8. Bf4 {[%clk 0:02:53]}  c5 {[%clk 0:02:59]} 9. e3 {[%clk 0:02:53]}  cxd4 {[%clk 0:02:52]} 10. cxd4 {[%clk 0:02:50]}  Qa5+ {[%clk 0:02:41]} 11. Nd2 {[%clk 0:02:50]}  Nc6 {[%clk 0:02:41]} 12. Bc4 {[%clk 0:02:46]}  e5 {[%clk 0:02:41]} 13. dxe5 {[%clk 0:02:43]}  Nxe5 {[%clk 0:02:42]} 14. Bxe5 {[%clk 0:02:31]}  Bxe5 {[%clk 0:02:40]} 15. Rd1 {[%clk 0:02:31]}  Bc3 {[%clk 0:02:28]} 16. Ke2 {[%clk 0:02:30]}  Bd7 {[%clk 0:02:10]} 17. Qxb7 {[%clk 0:02:21]}  Ba4 {[%clk 0:01:07]} 18. Nb3 {[%clk 0:02:15]}  Qf5 {[%clk 0:01:06]} 19. Rd3 {[%clk 0:02:03]}  Bf6 {[%clk 0:01:03]} 20. h3 {[%clk 0:01:55]}  Rac8 {[%clk 0:00:48]} 21. Qd5 {[%clk 0:01:46]}  Rxc4 {[%clk 0:00:44]} 22. Qxc4 {[%clk 0:01:37]}  Bb5 {[%clk 0:00:45]} 23. Qc2 {[%clk 0:01:28]}  Rc8 {[%clk 0:00:44]} 24. Qb1 {[%clk 0:01:17]}  Bxd3+ {[%clk 0:00:44]} 25. Qxd3 {[%clk 0:01:16]}  Rc2+ {[%clk 0:00:41]} 26. Nd2 {[%clk 0:01:16]}  Qxd3+ {[%clk 0:00:33]} 27. Kxd3 {[%clk 0:01:17]}  Rxa2 {[%clk 0:00:34]} 28. Rb1 {[%clk 0:01:15]}  Kg7 {[%clk 0:00:33]} 29. Rb7 {[%clk 0:01:13]}  h5 {[%clk 0:00:30]} 30. g4 {[%clk 0:01:11]}  Bh4 {[%clk 0:00:25]} 31. f4 {[%clk 0:01:09]}  a5 {[%clk 0:00:25]} 32. g5 {[%clk 0:01:07]}  Bf2 {[%clk 0:00:22]} 33. Nc4 {[%clk 0:00:57]}  Be1 {[%clk 0:00:19]} 34. Ne5 {[%clk 0:00:52]}  Bb4 {[%clk 0:00:10]} 35. Rxf7+ {[%clk 0:00:51]}  Kg8 {[%clk 0:00:11]} 36. Ra7 {[%clk 0:00:41]}  Ra3+ {[%clk 0:00:11]} 37. Ke4 {[%clk 0:00:39]}  Bc5 {[%clk 0:00:12]} 38. Ra8+ {[%clk 0:00:39]}  Kg7 {[%clk 0:00:12]} 39. Nc4 {[%clk 0:00:40]}  Rc3 {[%clk 0:00:11]} 40. Kd5 {[%clk 0:00:40]}  Bxe3 {[%clk 0:00:11]} 41. Ra7+ {[%clk 0:00:38]}  Kg8 {[%clk 0:00:11]} 42. Ra8+ {[%clk 0:00:33]}  Kg7 {[%clk 0:00:11]} 43. Nxe3 {[%clk 0:00:30]}  Rxe3 {[%clk 0:00:12]} 44. Ra7+ {[%clk 0:00:29]}  Kg8 {[%clk 0:00:12]} 45. Rxa5 {[%clk 0:00:28]}  Rxh3 {[%clk 0:00:05]} 46. Ke5 {[%clk 0:00:26]}  Rf3 {[%clk 0:00:04]} 47. Ra8+ {[%clk 0:00:23]}  Kg7 {[%clk 0:00:05]} 48. Ra7+ {[%clk 0:00:24]}  Kg8 {[%clk 0:00:05]} 49. Kf6 {[%clk 0:00:24]}  Rxf4+ {[%clk 0:00:05]} 50. Kxg6 {[%clk 0:00:25]}  Rf8 {[%clk 0:00:06]} 51. Rg7+ {[%clk 0:00:24]}  Kh8 {[%clk 0:00:06]} 52. Rh7+ {[%clk 0:00:24]}  Kg8 {[%clk 0:00:05]} 53. Rxh5 {[%clk 0:00:25]}  Rb8 {[%clk 0:00:05]} 54. Kh6 {[%clk 0:00:24]}  Rb6+ {[%clk 0:00:05]} 55. g6 {[%clk 0:00:25]}  Rd6 {[%clk 0:00:05]} 56. Ra5 {[%clk 0:00:24]}  Rd8 {[%clk 0:00:05]} 57. Ra7 {[%clk 0:00:25]}  Re8 {[%clk 0:00:06]} 58. Rg7+ {[%clk 0:00:25]}  Kf8 {[%clk 0:00:06]} 59. Rh7 {[%clk 0:00:25]}  Kg8 {[%clk 0:00:06]} 60. Rb7 {[%clk 0:00:25]}  Rc8 {[%clk 0:00:06]} 61. Kg5 {[%clk 0:00:25]}  Rd8 {[%clk 0:00:06]} 62. Rb6 {[%clk 0:00:24]}  Rc8 {[%clk 0:00:06]} 63. Kf6 {[%clk 0:00:24]}  Rd8 {[%clk 0:00:07]} 64. Rb7 {[%clk 0:00:24]}  Rf8+ {[%clk 0:00:07]} 65. Rf7 {[%clk 0:00:24]}  Rb8 {[%clk 0:00:05]} 66. Rg7+ {[%clk 0:00:23]}  Kf8 {[%clk 0:00:04]} 67. Rh7 {[%clk 0:00:23]}  Kg8 {[%clk 0:00:05]} 68. Rh1 {[%clk 0:00:23]}  Rf8+ {[%clk 0:00:04]} 69. Kg5 {[%clk 0:00:23]}  Rb8 {[%clk 0:00:05]} 70. Kh6 {[%clk 0:00:23]}  Rc8 {[%clk 0:00:05]} 71. Re1 {[%clk 0:00:22]}  Rd8 {[%clk 0:00:06]} 72. Re7 {[%clk 0:00:22]}  Rc8 {[%clk 0:00:06]} 73. Rg7+ {[%clk 0:00:22]}  Kf8 {[%clk 0:00:06]} 74. Kh7 {[%clk 0:00:21]}  Rc1 {[%clk 0:00:02]} 75. Rg8+ {[%clk 0:00:21]}  Ke7 {[%clk 0:00:03]} 76. Ra8 {[%clk 0:00:20]}  Rh1+ {[%clk 0:00:03]} 77. Kg7 {[%clk 0:00:20]}  Rc1 {[%clk 0:00:03]} 78. Ra7+ {[%clk 0:00:20]}  Ke8 {[%clk 0:00:04]} 79. Kg8 {[%clk 0:00:20]}  Rc8 {[%clk 0:00:04]} 80. g7 {[%clk 0:00:19]}  Rc1 {[%clk 0:00:04]} 81. Ra8+ {[%clk 0:00:19]}  Ke7 {[%clk 0:00:04]} 82. Ra7+ {[%clk 0:00:19]}  Kf6 {[%clk 0:00:04]} 83. Ra8 {[%clk 0:00:17]}  Rc7 {[%clk 0:00:04]} 84. Ra6+ {[%clk 0:00:15]}  Kg5 {[%clk 0:00:04]} 85. Kh7 {[%clk 0:00:15]}  Kh5 {[%clk 0:00:02]} 86. Kh8 {[%clk 0:00:14]} 1-0


[Site "https://www.chess.com"]

[Event "Titled Tuesday Blitz August 08 Early 2023"]
[White "Ladan, Nicholas"]
[Black "Kononenko, Dmitry"]
[WhiteFideId "30918855"]
[BlackFideId "14113538"]
[WhiteElo "2428"]
[BlackElo "2613"]
[Result "1/2-1/2"]
[Round "3"]
[TimeControl "180+1"]
[Date "2023.08.08"]
[WhiteClock "0:00:08"]
[BlackClock "0:00:33"]
[Board "136"]

1. d4 {[%clk 0:03:00]}  Nf6 {[%clk 0:02:58]} 2. Nf3 {[%clk 0:03:01]}  g6 {[%clk 0:02:57]} 3. Nc3 {[%clk 0:02:58]}  d5 {[%clk 0:02:56]} 4. Bg5 {[%clk 0:02:57]}  Bg7 {[%clk 0:02:47]} 5. Qd2 {[%clk 0:02:56]}  h6 {[%clk 0:02:47]} 6. Bf4 {[%clk 0:02:55]}  Ne4 {[%clk 0:02:46]} 7. Nxe4 {[%clk 0:02:53]}  dxe4 {[%clk 0:02:47]} 8. Ne5 {[%clk 0:02:53]}  Nc6 {[%clk 0:02:43]} 9. Nxc6 {[%clk 0:02:50]}  bxc6 {[%clk 0:02:44]} 10. e3 {[%clk 0:02:51]}  c5 {[%clk 0:02:42]} 11. Bb5+ {[%clk 0:02:41]}  Bd7 {[%clk 0:02:41]} 12. Bxd7+ {[%clk 0:02:35]}  Qxd7 {[%clk 0:02:41]} 13. dxc5 {[%clk 0:02:29]}  Qb5 {[%clk 0:02:41]} 14. Qe2 {[%clk 0:02:20]}  Qxc5 {[%clk 0:02:37]} 15. c3 {[%clk 0:02:14]}  O-O {[%clk 0:02:36]} 16. O-O {[%clk 0:02:13]}  Rfd8 {[%clk 0:02:36]} 17. Rfd1 {[%clk 0:02:10]}  Rab8 {[%clk 0:02:28]} 18. Rxd8+ {[%clk 0:02:07]}  Rxd8 {[%clk 0:02:28]} 19. Rd1 {[%clk 0:02:07]}  Rb8 {[%clk 0:02:25]} 20. h3 {[%clk 0:02:01]}  Qc6 {[%clk 0:02:22]} 21. Qc2 {[%clk 0:01:52]}  a5 {[%clk 0:02:19]} 22. b3 {[%clk 0:01:48]}  Qxc3 {[%clk 0:02:13]} 23. Qxc3 {[%clk 0:01:44]}  Bxc3 {[%clk 0:02:14]} 24. Bxc7 {[%clk 0:01:40]}  Rc8 {[%clk 0:02:14]} 25. Rd8+ {[%clk 0:01:28]}  Rxd8 {[%clk 0:02:11]} 26. Bxd8 {[%clk 0:01:29]}  Kf8 {[%clk 0:02:10]} 27. Kf1 {[%clk 0:01:28]}  Ke8 {[%clk 0:02:10]} 28. Bb6 {[%clk 0:01:26]}  Kd7 {[%clk 0:02:10]} 29. Bd4 {[%clk 0:01:14]}  Bb4 {[%clk 0:02:00]} 30. Ke2 {[%clk 0:01:10]}  Kc6 {[%clk 0:02:00]} 31. g4 {[%clk 0:01:07]}  Kd5 {[%clk 0:01:57]} 32. f4 {[%clk 0:00:59]}  exf3+ {[%clk 0:01:56]} 33. Kxf3 {[%clk 0:01:00]}  e5 {[%clk 0:01:56]} 34. Bb2 {[%clk 0:00:58]}  f5 {[%clk 0:01:53]} 35. gxf5 {[%clk 0:00:38]}  gxf5 {[%clk 0:01:54]} 36. Bc1 {[%clk 0:00:36]}  e4+ {[%clk 0:01:52]} 37. Kg3 {[%clk 0:00:30]}  Bd6+ {[%clk 0:01:44]} 38. Kh4 {[%clk 0:00:29]}  f4 {[%clk 0:01:29]} 39. exf4 {[%clk 0:00:27]}  Kd4 {[%clk 0:01:29]} 40. Bd2 {[%clk 0:00:22]}  e3 {[%clk 0:01:26]} 41. Bxa5 {[%clk 0:00:21]}  Bxf4 {[%clk 0:01:25]} 42. Kg4 {[%clk 0:00:17]}  Bd6 {[%clk 0:01:22]} 43. Kf3 {[%clk 0:00:12]}  Kd3 {[%clk 0:01:22]} 44. b4 {[%clk 0:00:08]}  e2 {[%clk 0:01:17]} 45. b5 {[%clk 0:00:08]}  Bc7 {[%clk 0:01:17]} 46. Be1 {[%clk 0:00:08]}  Bb6 {[%clk 0:01:12]} 47. a4 {[%clk 0:00:08]}  Bd8 {[%clk 0:01:10]} 48. a5 {[%clk 0:00:08]}  Kc4 {[%clk 0:01:08]} 49. b6 {[%clk 0:00:08]}  Kd3 {[%clk 0:01:08]} 50. b7 {[%clk 0:00:07]}  Bc7 {[%clk 0:01:08]} 51. a6 {[%clk 0:00:07]}  Bb8 {[%clk 0:01:08]} 52. Ba5 {[%clk 0:00:04]}  Ba7 {[%clk 0:01:06]} 53. Be1 {[%clk 0:00:05]}  Bb8 {[%clk 0:01:06]} 54. h4 {[%clk 0:00:05]}  h5 {[%clk 0:01:06]} 55. Bf2 {[%clk 0:00:04]}  Ba7 {[%clk 0:01:04]} 56. Bxa7 {[%clk 0:00:04]}  e1=Q {[%clk 0:01:03]} 57. b8=Q {[%clk 0:00:05]}  Qe4+ {[%clk 0:00:56]} 58. Kf2 {[%clk 0:00:05]}  Qe2+ {[%clk 0:00:55]} 59. Kg3 {[%clk 0:00:05]}  Qg4+ {[%clk 0:00:54]} 60. Kf2 {[%clk 0:00:04]}  Qe2+ {[%clk 0:00:54]} 61. Kg1 {[%clk 0:00:05]}  Qe1+ {[%clk 0:00:49]} 62. Kh2 {[%clk 0:00:05]}  Qxh4+ {[%clk 0:00:48]} 63. Kg2 {[%clk 0:00:06]}  Qe4+ {[%clk 0:00:48]} 64. Kg3 {[%clk 0:00:06]}  h4+ {[%clk 0:00:45]} 65. Kh3 {[%clk 0:00:05]}  Qh1+ {[%clk 0:00:45]} 66. Kg4 {[%clk 0:00:05]}  Qe4+ {[%clk 0:00:42]} 67. Kh5 {[%clk 0:00:05]}  Qh7+ {[%clk 0:00:42]} 68. Kg5 {[%clk 0:00:05]}  Qe7+ {[%clk 0:00:40]} 69. Kf5 {[%clk 0:00:04]}  Qe4+ {[%clk 0:00:35]} 70. Kf6 {[%clk 0:00:05]}  Qc6+ {[%clk 0:00:31]} 71. Ke7 {[%clk 0:00:04]}  Qxa6 {[%clk 0:00:30]} 72. Qd6+ {[%clk 0:00:04]}  Qxd6+ {[%clk 0:00:30]} 73. Kxd6 {[%clk 0:00:05]}  h3 {[%clk 0:00:30]} 74. Bg1 {[%clk 0:00:06]}  Ke2 {[%clk 0:00:31]} 75. Bh2 {[%clk 0:00:07]}  Kf1 {[%clk 0:00:31]} 76. Be5 {[%clk 0:00:07]}  Kg2 {[%clk 0:00:32]} 77. Kd5 {[%clk 0:00:08]}  h2 {[%clk 0:00:33]} 78. Bxh2 {[%clk 0:00:08]} 1/2-1/2


[Site "https://www.chess.com"]

[Event "Titled Tuesday Blitz August 08 Early 2023"]
[White "Liyanage, Ranindu Dilshan"]
[Black "Begunov, Konstantin"]
[WhiteFideId "9915834"]
[BlackFideId "4118510"]
[WhiteElo "2605"]
[BlackElo "2427"]
[Result "1-0"]
[Round "3"]
[TimeControl "180+1"]
[Date "2023.08.08"]
[WhiteClock "0:01:21"]
[BlackClock "0:00:00"]
[Board "137"]

1. e4 {[%clk 0:03:00]}  c5 {[%clk 0:02:57]} 2. Nc3 {[%clk 0:03:00]}  d6 {[%clk 0:02:57]} 3. f4 {[%clk 0:03:00]}  g6 {[%clk 0:02:56]} 4. Nf3 {[%clk 0:03:00]}  Bg7 {[%clk 0:02:56]} 5. Bb5+ {[%clk 0:03:01]}  Bd7 {[%clk 0:02:56]} 6. Bc4 {[%clk 0:03:02]}  Nc6 {[%clk 0:02:53]} 7. d3 {[%clk 0:03:02]}  a6 {[%clk 0:02:49]} 8. a4 {[%clk 0:03:01]}  e6 {[%clk 0:02:39]} 9. f5 {[%clk 0:03:00]}  exf5 {[%clk 0:02:32]} 10. O-O {[%clk 0:02:58]}  Nge7 {[%clk 0:02:19]} 11. Qe1 {[%clk 0:02:52]}  Ne5 {[%clk 0:02:06]} 12. Nxe5 {[%clk 0:02:30]}  dxe5 {[%clk 0:01:52]} 13. Bg5 {[%clk 0:02:11]}  f6 {[%clk 0:01:45]} 14. Be3 {[%clk 0:02:04]}  Qc7 {[%clk 0:01:39]} 15. Rb1 {[%clk 0:01:53]}  f4 {[%clk 0:01:26]} 16. Bf2 {[%clk 0:01:51]}  a5 {[%clk 0:00:52]} 17. g3 {[%clk 0:01:41]}  Bh3 {[%clk 0:00:24]} 18. gxf4 {[%clk 0:01:34]}  Bxf1 {[%clk 0:00:21]} 19. Qxf1 {[%clk 0:01:35]}  exf4 {[%clk 0:00:20]} 20. Qh3 {[%clk 0:01:32]}  b6 {[%clk 0:00:18]} 21. Qe6 {[%clk 0:01:26]}  Kd8 {[%clk 0:00:12]} 22. Nb5 {[%clk 0:01:21]}  Qd7 {[%clk 0:00:12]} 23. Qxb6+ {[%clk 0:01:20]}  Ke8 {[%clk 0:00:08]} 24. Nc7+ {[%clk 0:01:20]}  Kf8 {[%clk 0:00:00]} 25. Ne6+ {[%clk 0:01:21]} 1-0


[Site "https://www.chess.com"]

[Event "Titled Tuesday Blitz August 08 Early 2023"]
[White "Khromkin, Andrey"]
[Black "Jia, Haoxiang"]
[WhiteFideId "4154126"]
[BlackFideId "8602999"]
[WhiteElo "2416"]
[BlackElo "2591"]
[Result "0-1"]
[Round "3"]
[TimeControl "180+1"]
[Date "2023.08.08"]
[WhiteClock "0:00:08"]
[BlackClock "0:00:20"]
[Board "146"]

1. d4 {[%clk 0:03:00]}  Nf6 {[%clk 0:02:58]} 2. c4 {[%clk 0:03:00]}  g6 {[%clk 0:02:58]} 3. Nf3 {[%clk 0:03:01]}  Bg7 {[%clk 0:02:58]} 4. Nc3 {[%clk 0:03:02]}  O-O {[%clk 0:02:58]} 5. g3 {[%clk 0:03:02]}  d6 {[%clk 0:02:58]} 6. Bg2 {[%clk 0:03:02]}  Nbd7 {[%clk 0:02:59]} 7. O-O {[%clk 0:03:03]}  c6 {[%clk 0:02:59]} 8. h3 {[%clk 0:03:04]}  e5 {[%clk 0:03:00]} 9. e4 {[%clk 0:03:03]}  exd4 {[%clk 0:02:59]} 10. Nxd4 {[%clk 0:03:02]}  Re8 {[%clk 0:02:59]} 11. Be3 {[%clk 0:03:02]}  Nc5 {[%clk 0:02:58]} 12. Qc2 {[%clk 0:03:03]}  a5 {[%clk 0:02:55]} 13. Rfe1 {[%clk 0:03:02]}  Qc7 {[%clk 0:02:55]} 14. b3 {[%clk 0:03:00]}  Nfd7 {[%clk 0:02:49]} 15. Kh2 {[%clk 0:02:54]}  Ne5 {[%clk 0:02:43]} 16. Red1 {[%clk 0:02:51]}  h5 {[%clk 0:02:27]} 17. f4 {[%clk 0:02:49]}  Ned7 {[%clk 0:02:26]} 18. Bf2 {[%clk 0:02:50]}  h4 {[%clk 0:02:23]} 19. gxh4 {[%clk 0:02:43]}  Nf6 {[%clk 0:02:16]} 20. Nde2 {[%clk 0:02:18]}  Nh5 {[%clk 0:01:58]} 21. Rab1 {[%clk 0:02:03]}  Bh6 {[%clk 0:01:45]} 22. Bg3 {[%clk 0:01:32]}  Nxg3 {[%clk 0:01:41]} 23. Kxg3 {[%clk 0:01:32]}  f5 {[%clk 0:01:27]} 24. Qd2 {[%clk 0:01:18]}  Nxe4+ {[%clk 0:01:19]} 25. Nxe4 {[%clk 0:01:17]}  fxe4 {[%clk 0:01:19]} 26. Qxd6 {[%clk 0:01:18]}  Qf7 {[%clk 0:01:12]} 27. h5 {[%clk 0:01:17]}  Bf5 {[%clk 0:01:07]} 28. hxg6 {[%clk 0:01:13]}  Bxg6 {[%clk 0:01:07]} 29. Kh2 {[%clk 0:01:03]}  Re6 {[%clk 0:00:59]} 30. Qd4 {[%clk 0:00:56]}  Bh5 {[%clk 0:00:56]} 31. Rg1 {[%clk 0:00:52]}  Bg7 {[%clk 0:00:42]} 32. Qe3 {[%clk 0:00:49]}  Rd8 {[%clk 0:00:40]} 33. Bxe4 {[%clk 0:00:40]}  Bxe2 {[%clk 0:00:39]} 34. f5 {[%clk 0:00:17]}  Rxe4 {[%clk 0:00:20]} 35. Qxe4 {[%clk 0:00:16]}  Bd3 {[%clk 0:00:20]} 36. Qf4 {[%clk 0:00:13]}  Bxb1 {[%clk 0:00:18]} 37. f6 {[%clk 0:00:13]}  Bg6 {[%clk 0:00:18]} 38. Qg5 {[%clk 0:00:13]}  Qxf6 {[%clk 0:00:18]} 39. Qxf6 {[%clk 0:00:12]}  Bxf6 {[%clk 0:00:18]} 40. Rxg6+ {[%clk 0:00:13]}  Kf7 {[%clk 0:00:19]} 41. Rh6 {[%clk 0:00:12]}  Rd2+ {[%clk 0:00:19]} 42. Kg3 {[%clk 0:00:12]}  Kg7 {[%clk 0:00:19]} 43. Rh5 {[%clk 0:00:11]}  Rxa2 {[%clk 0:00:20]} 44. Rxa5 {[%clk 0:00:08]}  Rxa5 {[%clk 0:00:20]} 0-1


[Site "https://www.chess.com"]